bitfinex-derivatives/quotes_BNBF0:USTF0_20250220
["timestamp","ask_amount","ask_price","bid_price","bid_amount"]
[1740030285083,1.0982993,651.49,649.96,0.30771124]
[1740030285382,1.0982993,651.48,649.96,0.30771124]
[1740030285576,1.0982993,651.47,649.96,0.30771124]
[1740030285777,1.0982993,651.46,649.96,0.30771124]
[1740030285981,1.0982993,651.45,649.96,0.30771124]
[1740030286176,1.0982993,651.44,649.96,0.30771124]
[1740030286384,1.0982993,651.43,649.96,0.30771124]
[1740030286682,1.0982993,651.42,649.96,0.30771124]
[1740030286875,1.0982993,651.41,649.96,0.30771124]
[1740030287076,1.0982993,651.4,649.96,0.30771124]
[1740030287278,1.0982993,651.39,649.96,0.30771124]
[1740030287476,1.0982993,651.38,649.96,0.30771124]
[1740030287682,1.0982993,651.37,649.96,0.30771124]
[1740030287881,1.0982993,651.36,649.96,0.30771124]
[1740030288078,1.0982993,651.35,649.96,0.30771124]
[1740030288282,0.30690851,651.66,649.96,0.30771124]
[1740030288283,1.0982993,651.34,649.96,0.30771124]
[1740030288478,1.0982993,651.33,649.96,0.30771124]
[1740030288681,1.0982993,651.32,649.96,0.30771124]
[1740030288881,1.0982993,651.31,649.96,0.30771124]
[1740030289083,1.0982993,651.3,649.96,0.30771124]
[1740030289287,1.09796265,651.29,649.96,0.30771124]
[1740030289481,1.09796265,651.28,649.96,0.30771124]
[1740030289678,1.09796265,651.27,649.96,0.30771124]
[1740030289883,1.09796265,651.26,649.96,0.30771124]
[1740030290084,1.09796265,651.25,649.96,0.30771124]
[1740030290280,0.30690851,651.66,649.96,0.30771124]
[1740030290281,1.09796265,651.24,649.96,0.30771124]
[1740030290485,1.09796265,651.23,649.96,0.30771124]
[1740030290683,1.09796265,651.22,649.97,1.14537976]
[1740030290887,1.09796265,651.21,649.97,1.14537976]
[1740030291088,1.09796265,651.2,649.97,1.14537976]
[1740030291289,1.09796265,651.19,649.97,1.14537976]
[1740030291486,1.09796265,651.18,649.97,1.14537976]
[1740030291681,1.09796265,651.17,649.97,1.14537976]
[1740030291881,1.09796265,651.16,649.97,1.14537976]
[1740030292086,1.09796265,651.15,649.97,1.14537976]
[1740030292387,1.09796265,651.14,649.97,1.14537976]
[1740030292589,1.09796265,651.13,649.99,0.30769704]
[1740030292787,1.09796265,651.12,649.99,0.30769704]
[1740030292988,1.09796265,651.11,649.99,0.30769704]
[1740030293288,1.09796265,651.1,649.99,0.30769704]
[1740030293589,1.09796265,651.09,649.99,0.30769704]
[1740030293885,1.09796265,651.08,649.99,0.30769704]
[1740030294081,1.09796265,651.07,649.99,0.30769704]
[1740030294283,1.09796265,651.06,649.99,0.30769704]
[1740030294489,1.09796265,651.05,649.99,0.30769704]
[1740030294690,1.09796265,651.04,649.99,0.30769704]
[1740030294889,1.09796265,651.03,649.99,0.30769704]
[1740030295090,1.09796265,651.02,649.99,0.30769704]
[1740030295290,0.30690851,651.66,649.99,0.30769704]
[1740030295490,1.09787981,651.65,649.99,0.30769704]
[1740030295686,1.40479774,651.64,649.99,0.30769704]
[1740030295892,1.68701885,651.63,650.0,1.14537976]
[1740030296092,1.38009621,651.62,650.02,0.30768284]
[1740030296286,1.38009621,651.61,650.02,0.30768284]
[1740030296488,1.38009621,651.6,650.02,0.30768284]
[1740030296684,1.68703769,651.59,650.02,0.30768284]
[1740030296890,1.38009621,651.58,650.02,0.30768284]
[1740030297087,1.38009621,651.57,650.02,0.30768284]
[1740030297291,1.38009621,651.56,650.02,0.30768284]
[1740030297491,1.38013262,651.55,650.02,0.30768284]
[1740030297791,1.38013262,651.54,650.02,0.30768284]
[1740030297992,1.38013262,651.53,650.02,0.30768284]
[1740030298292,1.38013262,651.52,650.07,1.14537976]
[1740030298590,1.38013262,651.51,650.08,0.30765444]
[1740030298792,1.38013262,651.5,650.08,0.30765444]
[1740030298992,1.09791622,651.49,650.08,0.30765444]
[1740030299188,1.09791622,651.48,650.08,0.30765444]
[1740030299389,1.09791622,651.47,650.08,0.30765444]
[1740030299691,1.09791622,651.46,650.08,0.30765444]
[1740030299887,1.09791622,651.45,650.08,0.30765444]
[1740030300092,1.09791622,651.44,650.08,0.30765444]
[1740030300392,1.09791622,651.43,650.08,0.30765444]
[1740030300591,1.09791622,651.42,650.08,0.30765444]
[1740030300786,1.09791622,651.41,650.08,0.30765444]
[1740030300986,1.09791622,651.4,650.1,1.14537976]
[1740030301191,1.09791622,651.39,650.11,0.30764024]
[1740030301392,1.09791622,651.38,650.11,0.30764024]
[1740030301588,1.09791622,651.37,650.11,0.30764024]
[1740030301790,1.09791622,651.36,650.11,0.30764024]
[1740030301992,1.09791622,651.35,650.11,0.30764024]
[1740030302193,1.09791622,651.34,650.11,0.30764024]
[1740030302388,1.09791622,651.33,650.11,0.30764024]
[1740030302588,1.09791622,651.32,650.11,0.30764024]
[1740030302792,1.09791622,651.31,650.11,0.30764024]
[1740030302989,1.09791622,651.3,650.11,0.30764024]
[1740030303292,1.09791622,651.29,650.11,0.30764024]
[1740030303493,1.09791622,651.28,650.14,1.14537976]
[1740030303689,1.09791622,651.27,650.15,0.30762131]
[1740030303890,1.09791622,651.26,650.15,0.30762131]
[1740030304095,1.09791622,651.25,650.15,0.30762131]
[1740030304289,1.09791622,651.24,650.15,0.30762131]
[1740030304494,1.09791622,651.23,650.15,0.30762131]
[1740030304696,1.09791622,651.22,650.15,0.30762131]
[1740030304894,1.09791622,651.21,650.15,0.30762131]
[1740030305194,1.09791622,651.2,650.15,0.30762131]
[1740030305394,1.09791622,651.19,650.15,0.30762131]
[1740030305596,1.09791622,651.18,650.15,0.30762131]
[1740030305795,0.30694148,651.59,650.24,1.14537976]
[1740030305796,1.09791622,651.17,650.24,1.14537976]
[1740030305996,1.09791622,651.16,650.25,0.307574]
[1740030306192,1.09791622,651.15,650.25,0.307574]
[1740030306393,1.09791622,651.14,650.25,0.307574]
[1740030306596,1.09791622,651.13,650.25,0.307574]
[1740030306797,1.09791622,651.12,650.25,0.307574]
[1740030306998,1.09791622,651.11,650.25,0.307574]
[1740030307196,1.09791622,651.1,650.25,0.307574]
[1740030307395,1.09791622,651.09,650.25,0.307574]
[1740030307598,1.09791622,651.08,650.25,0.307574]
[1740030307898,1.09791622,651.07,650.25,0.307574]
[1740030308093,1.09791622,651.06,650.25,0.307574]
[1740030308296,1.09791622,651.05,650.25,0.307574]
[1740030308497,1.09791622,651.04,650.25,0.307574]
[1740030308695,1.09791622,651.03,650.25,0.307574]
[1740030308896,1.09791622,651.02,650.25,0.307574]
[1740030309095,0.30694148,651.59,650.25,0.307574]
[1740030309401,1.38109461,651.58,650.25,0.307574]
[1740030309595,1.38109461,651.57,650.25,0.307574]
[1740030309800,1.38109461,651.56,650.25,0.307574]
[1740030309999,1.38109461,651.55,650.25,0.307574]
[1740030310200,1.38109461,651.54,650.25,0.307574]
[1740030310400,1.38109461,651.53,650.25,0.307574]
[1740030310600,1.09887431,651.52,650.25,0.307574]
[1740030310801,1.38110111,651.51,650.25,0.307574]
[1740030310999,1.38110111,651.5,650.25,0.307574]
[1740030311200,0.30694148,651.59,650.25,0.307574]
[1740030311201,1.38110111,651.49,650.25,0.307574]
[1740030311403,1.38110111,651.48,650.25,0.307574]
[1740030311603,1.38110111,651.47,650.25,0.307574]
[1740030311805,1.09887431,651.46,650.25,0.307574]
[1740030311999,1.09887431,651.45,650.25,0.307574]
[1740030312204,1.09887431,651.44,650.25,0.307574]
[1740030312404,1.09887431,651.43,650.25,0.307574]
[1740030312606,1.09887431,651.42,650.25,0.307574]
[1740030312805,1.09887431,651.41,650.25,0.307574]
[1740030313105,1.09887431,651.4,650.25,0.307574]
[1740030313306,1.09887431,651.39,650.25,0.307574]
[1740030313506,1.09887431,651.38,650.25,0.307574]
[1740030313704,1.09887431,651.37,650.25,0.307574]
[1740030313904,1.09887431,651.36,650.25,0.307574]
[1740030314200,1.09887431,651.35,650.25,0.307574]
[1740030314401,1.09887431,651.34,650.25,0.307574]
[1740030314605,1.09887431,651.33,650.25,0.307574]
[1740030314801,1.09887431,651.32,650.25,0.307574]
[1740030315001,1.09887431,651.31,650.25,0.307574]
[1740030315206,1.10127398,651.3,650.25,0.307574]
[1740030315404,1.10127398,651.29,650.25,0.307574]
[1740030315602,1.10127398,651.28,650.25,0.307574]
[1740030315801,1.10127398,651.27,650.25,0.307574]
[1740030316002,1.10127398,651.26,650.25,0.307574]
[1740030316208,1.10127398,651.25,650.25,0.307574]
[1740030316411,1.10127398,651.24,650.25,0.307574]
[1740030316610,1.10127398,651.23,650.25,0.307574]
[1740030316811,1.10127398,651.22,650.25,0.307574]
[1740030317005,1.10127398,651.21,650.25,0.307574]
[1740030317213,1.1019592,651.2,650.25,0.307574]
[1740030317411,1.1019592,651.19,650.25,0.307574]
[1740030317612,1.1019592,651.18,650.25,0.307574]
[1740030317911,1.1019592,651.17,650.25,0.307574]
[1740030318109,1.1019592,651.16,650.25,0.307574]
[1740030318303,1.1019592,651.15,650.25,0.307574]
[1740030318605,1.1019592,651.14,650.25,0.307574]
[1740030318805,1.1019592,651.13,650.25,0.307574]
[1740030319007,1.1019592,651.12,650.25,0.307574]
[1740030319209,1.1019592,651.11,650.25,0.307574]
[1740030319410,1.1019592,651.1,650.25,0.307574]
[1740030319610,1.1019592,651.09,650.25,0.307574]
[1740030319811,1.1019592,651.08,650.25,0.307574]
[1740030320010,1.1019592,651.07,650.25,0.307574]
[1740030320211,1.1019592,651.06,650.25,0.307574]
[1740030320414,0.30694148,651.59,650.25,0.307574]
[1740030320415,1.1019592,651.05,650.25,0.307574]
[1740030320614,1.1019592,651.04,650.25,0.307574]
[1740030320811,1.1019592,651.03,650.25,0.307574]
[1740030321006,0.30694148,651.59,650.25,0.307574]
[1740030321206,1.10312128,651.58,650.25,0.307574]
[1740030321412,1.38528861,651.57,650.25,0.307574]
[1740030321613,1.38528861,651.56,650.25,0.307574]
[1740030321812,1.38528861,651.55,650.25,0.307574]
[1740030322013,1.38528861,651.54,650.25,0.307574]
[1740030322210,1.1031189,651.53,650.25,0.307574]
[1740030322412,1.1031189,651.52,650.36,1.14537976]
[1740030322612,1.1031189,651.51,650.37,0.30751725]
[1740030322814,1.1031189,651.5,650.37,0.30751725]
[1740030323017,1.1031189,651.49,650.37,0.30751725]
[1740030323216,1.1031189,651.48,650.37,0.30751725]
[1740030323517,1.1031189,651.47,650.37,0.30751725]
[1740030323717,1.1031189,651.46,650.37,0.30751725]
[1740030324019,1.1031189,651.45,650.37,0.30751725]
[1740030324318,1.1031189,651.44,650.37,0.30751725]
[1740030324618,0.30694148,651.59,650.37,0.30751725]
[1740030324619,1.1031189,651.43,650.37,0.30751725]
[1740030324819,1.1031189,651.42,650.37,0.30751725]
[1740030325020,1.1031189,651.41,650.37,0.30751725]
[1740030325319,1.1031189,651.4,650.37,0.30751725]
[1740030325619,1.10352689,651.39,650.37,0.30751725]
[1740030325820,1.10352689,651.38,650.37,0.30751725]
[1740030326020,1.10352689,651.37,650.37,0.30751725]
[1740030326222,1.10352689,651.36,650.37,0.30751725]
[1740030326414,1.10352689,651.35,650.37,0.30751725]
[1740030326614,1.10352689,651.34,650.37,0.30751725]
[1740030326816,1.10352689,651.33,650.37,0.30751725]
[1740030327016,1.10352689,651.32,650.37,0.30751725]
[1740030327220,1.10352689,651.31,650.37,0.30751725]
[1740030327419,0.30694148,651.59,650.37,0.30751725]
[1740030327420,1.10352689,651.3,650.37,0.30751725]
[1740030327619,1.10352689,651.29,650.37,0.30751725]
[1740030327821,1.10352689,651.28,650.37,0.30751725]
[1740030328116,0.30694148,651.59,650.37,0.30751725]
[1740030328117,1.10352689,651.27,650.37,0.30751725]
[1740030328321,1.10352689,651.26,650.37,0.30751725]
[1740030328519,1.10352689,651.25,650.37,0.30751725]
[1740030328818,1.10352689,651.24,650.37,0.30751725]
[1740030329019,1.10352689,651.23,650.37,0.30751725]
[1740030329219,1.10352689,651.22,650.37,0.30751725]
[1740030329419,0.30694148,651.59,650.37,0.30751725]
[1740030329619,1.10338711,651.58,650.37,0.30751725]
[1740030329822,1.10338711,651.57,650.37,0.30751725]
[1740030330021,0.30694148,651.59,650.37,0.30751725]
[1740030330022,1.10338711,651.56,650.37,0.30751725]
[1740030330221,1.10338711,651.55,650.37,0.30751725]
[1740030330423,1.10338711,651.54,650.37,0.30751725]
[1740030330619,1.10338711,651.53,650.37,0.30751725]
[1740030330822,1.10338711,651.52,650.37,0.30751725]
[1740030331023,1.10338711,651.51,650.37,0.30751725]
[1740030331323,1.10338711,651.5,650.37,0.30751725]
[1740030331516,1.10338711,651.49,650.37,0.30751725]
[1740030331718,1.10338711,651.48,650.37,0.30751725]
[1740030331916,1.10338711,651.47,650.37,0.30751725]
[1740030332118,1.10338711,651.46,650.37,0.30751725]
[1740030332322,1.10338711,651.45,650.37,0.30751725]
[1740030332523,1.10338711,651.44,650.37,0.30751725]
[1740030332719,1.10338711,651.43,650.37,0.30751725]
[1740030333023,1.10338711,651.42,650.37,0.30751725]
[1740030333220,1.10338711,651.41,650.37,0.30751725]
[1740030333418,1.10338711,651.4,650.37,0.30751725]
[1740030333619,1.10338711,651.39,650.37,0.30751725]
[1740030333819,1.10338711,651.38,650.37,0.30751725]
[1740030334026,1.10338711,651.37,650.37,0.30751725]
[1740030334329,1.10338711,651.36,650.37,0.30751725]
[1740030334526,1.10338711,651.35,650.37,0.30751725]
[1740030334724,1.10338711,651.34,650.37,0.30751725]
[1740030334927,1.10338711,651.33,650.37,0.30751725]
[1740030335226,1.10338711,651.32,650.37,0.30751725]
[1740030335425,1.10338711,651.31,650.37,0.30751725]
[1740030335626,0.30694148,651.59,650.37,0.30751725]
[1740030335627,1.10338711,651.3,650.37,0.30751725]
[1740030335827,1.10338711,651.29,650.37,0.30751725]
[1740030336024,1.10338711,651.28,650.37,0.30751725]
[1740030336322,1.10338711,651.27,650.37,0.30751725]
[1740030336523,1.10338711,651.26,650.37,0.30751725]
[1740030336719,1.10338711,651.25,650.37,0.30751725]
[1740030336919,1.10338711,651.24,650.37,0.30751725]
[1740030337127,1.10338711,651.23,650.37,0.30751725]
[1740030337326,1.10338711,651.22,650.37,0.30751725]
[1740030337520,1.10338711,651.21,650.37,0.30751725]
[1740030337725,1.10338711,651.2,650.37,0.30751725]
[1740030337920,1.10338711,651.19,650.37,0.30751725]
[1740030338127,1.10338711,651.18,650.37,0.30751725]
[1740030338323,1.10338711,651.17,650.37,0.30751725]
[1740030338529,1.10338711,651.16,650.37,0.30751725]
[1740030338723,1.10338711,651.15,650.37,0.30751725]
[1740030338920,1.10338711,651.14,650.37,0.30751725]
[1740030339120,1.10338711,651.13,650.37,0.30751725]
[1740030339321,1.10338711,651.12,650.37,0.30751725]
[1740030339522,1.10338711,651.11,650.37,0.30751725]
[1740030339722,1.10338711,651.1,650.37,0.30751725]
[1740030339927,1.10338711,651.09,650.37,0.30751725]
[1740030340127,1.10338711,651.08,650.37,0.30751725]
[1740030340328,1.10338711,651.07,650.37,0.30751725]
[1740030340529,1.10338711,651.06,650.37,0.30751725]
[1740030340725,1.10338711,651.05,650.37,0.30751725]
[1740030340929,0.30694148,651.59,650.37,0.30751725]
[1740030340930,1.10338711,651.04,650.37,0.30751725]
[1740030341129,0.30694148,651.59,650.37,0.30751725]
[1740030341130,1.10338711,651.03,650.37,0.30751725]
[1740030341323,1.10338711,651.02,650.37,0.30751725]
[1740030341525,1.10338711,651.01,650.37,0.30751725]
[1740030341724,1.10338711,651.0,650.37,0.30751725]
[1740030341932,1.10338711,650.99,650.37,0.30751725]
[1740030342230,1.10338711,650.98,650.37,0.30751725]
[1740030342532,1.10338711,650.97,650.37,0.30751725]
[1740030342830,1.10338711,650.96,650.37,0.30751725]
[1740030343031,1.10338711,650.95,650.37,0.30751725]
[1740030343331,1.10338711,650.94,650.37,0.30751725]
[1740030343532,0.30694148,651.59,650.37,0.30751725]
[1740030343728,1.10345203,651.58,650.37,0.30751725]
[1740030343927,1.10345203,651.57,650.37,0.30751725]
[1740030344127,1.10345203,651.56,650.37,0.30751725]
[1740030344327,1.10345203,651.55,650.37,0.30751725]
[1740030344527,1.10345203,651.54,650.37,0.30751725]
[1740030344731,1.10345203,651.53,650.37,0.30751725]
[1740030344925,1.10345203,651.52,650.37,0.30751725]
[1740030345131,1.10345203,651.51,650.37,0.30751725]
[1740030345332,1.10345203,651.5,650.37,0.30751725]
[1740030345532,1.10345203,651.49,650.37,0.30751725]
[1740030345732,1.10345203,651.48,650.37,0.30751725]
[1740030346033,1.10345203,651.47,650.37,0.30751725]
[1740030346224,1.10345203,651.46,650.37,0.30751725]
[1740030346428,1.10345203,651.45,650.37,0.30751725]
[1740030346630,1.10345203,651.44,650.37,0.30751725]
[1740030346829,1.10345203,651.43,650.37,0.30751725]
[1740030347032,1.10345203,651.42,650.37,0.30751725]
[1740030347227,1.10345203,651.41,650.37,0.30751725]
[1740030347433,1.10345203,651.4,650.37,0.30751725]
[1740030347735,1.10345203,651.39,650.37,0.30751725]
[1740030347935,1.10345203,651.38,650.37,0.30751725]
[1740030348135,1.10345203,651.37,650.37,0.30751725]
[1740030348331,1.10345203,651.36,650.37,0.30751725]
[1740030348533,1.10345203,651.35,650.37,0.30751725]
[1740030348734,1.10345203,651.34,650.37,0.30751725]
[1740030349033,1.10345203,651.33,650.37,0.30751725]
[1740030349233,1.10345203,651.32,650.37,0.30751725]
[1740030349435,1.10345203,651.31,650.37,0.30751725]
[1740030349736,1.10345203,651.3,650.37,0.30751725]
[1740030349932,1.10345203,651.29,650.37,0.30751725]
[1740030350137,1.10345203,651.28,650.37,0.30751725]
[1740030350337,1.10345203,651.27,650.37,0.30751725]
[1740030350534,1.10345203,651.26,650.37,0.30751725]
[1740030350736,1.10345203,651.25,650.37,0.30751725]
[1740030350932,1.10345203,651.24,650.37,0.30751725]
[1740030351239,1.10345203,651.23,650.37,0.30751725]
[1740030351433,1.10345203,651.22,650.37,0.30751725]
[1740030351633,1.10345203,651.21,650.37,0.30751725]
[1740030351836,1.10345203,651.2,650.37,0.30751725]
[1740030352037,1.1035906,651.19,650.37,0.30751725]
[1740030352235,1.1035906,651.18,650.37,0.30751725]
[1740030352436,1.1035906,651.17,650.37,0.30751725]
[1740030352640,1.1035906,651.16,650.37,0.30751725]
[1740030352835,1.1035906,651.15,650.37,0.30751725]
[1740030353035,1.1035906,651.14,650.37,0.30751725]
[1740030353240,1.1035906,651.13,650.37,0.30751725]
[1740030353437,1.1035906,651.12,650.37,0.30751725]
[1740030353637,1.1035906,651.11,650.37,0.30751725]
[1740030353843,1.1035906,651.1,650.37,0.30751725]
[1740030354038,1.1035906,651.09,650.37,0.30751725]
[1740030354265,1.1035906,651.08,650.37,0.30751725]
[1740030354441,1.1035906,651.07,650.37,0.30751725]
[1740030354641,1.1035906,651.06,650.37,0.30751725]
[1740030354839,1.1035906,651.05,650.37,0.30751725]
[1740030355043,1.1035906,651.04,650.37,0.30751725]
[1740030355243,1.1035906,651.03,650.37,0.30751725]
[1740030355438,1.1035906,651.02,650.37,0.30751725]
[1740030355643,1.1035906,651.01,650.37,0.30751725]
[1740030355843,1.1035906,651.0,650.37,0.30751725]
[1740030356043,1.1035906,650.99,650.37,0.30751725]
[1740030356244,1.1035906,650.98,650.37,0.30751725]
[1740030356442,1.1035906,650.97,650.37,0.30751725]
[1740030356645,0.30694148,651.59,650.37,0.30751725]
[1740030356839,1.38582731,651.58,650.37,0.30751725]
[1740030357043,1.38582731,651.57,650.37,0.30751725]
[1740030357243,0.30694148,651.59,650.37,0.30751725]
[1740030357244,1.38582731,651.56,650.37,0.30751725]
[1740030357443,0.30694148,651.59,650.37,0.30751725]
[1740030357444,1.3858328,651.55,650.37,0.30751725]
[1740030357740,1.3858328,651.54,650.37,0.30751725]
[1740030357944,1.3858328,651.53,650.37,0.30751725]
[1740030358244,1.3858328,651.52,650.37,0.30751725]
[1740030358445,1.10363678,651.51,650.37,0.30751725]
[1740030358641,1.10363678,651.5,650.37,0.30751725]
[1740030358840,1.10363678,651.49,650.37,0.30751725]
[1740030359047,1.10363678,651.48,650.37,0.30751725]
[1740030359247,1.10363678,651.47,650.37,0.30751725]
[1740030359442,1.10363678,651.46,650.37,0.30751725]
[1740030359642,1.10363678,651.45,650.37,0.30751725]
[1740030359841,1.10363678,651.44,650.37,0.30751725]
[1740030360146,1.10363678,651.43,650.37,0.30751725]
[1740030360345,1.10363678,651.42,650.37,0.30751725]
[1740030360546,1.10363678,651.41,650.37,0.30751725]
[1740030360746,1.10363678,651.4,650.37,0.30751725]
[1740030360947,1.10363678,651.39,650.37,0.30751725]
[1740030361144,1.10363678,651.38,650.37,0.30751725]
[1740030361349,1.10363678,651.37,650.37,0.30751725]
[1740030361549,1.10363678,651.36,650.37,0.30751725]
[1740030361751,0.30694148,651.59,650.37,0.30751725]
[1740030361752,1.10363678,651.35,650.37,0.30751725]
[1740030361952,1.10363678,651.34,650.37,0.30751725]
[1740030362147,1.10363678,651.33,650.37,0.30751725]
[1740030362346,1.10363678,651.32,650.37,0.30751725]
[1740030362549,1.10363678,651.31,650.37,0.30751725]
[1740030362749,1.10363678,651.3,650.37,0.30751725]
[1740030362946,1.10363678,651.29,650.37,0.30751725]
[1740030363148,1.10363678,651.28,650.37,0.30751725]
[1740030363347,1.10363678,651.27,650.37,0.30751725]
[1740030363554,1.10363678,651.26,650.37,0.30751725]
[1740030363754,1.10363678,651.25,650.37,0.30751725]
[1740030363952,1.10363678,651.24,650.37,0.30751725]
[1740030364255,1.10363678,651.23,650.37,0.30751725]
[1740030364452,1.10363678,651.22,650.37,0.30751725]
[1740030364653,1.10363678,651.21,650.37,0.30751725]
[1740030364850,1.10363678,651.2,650.37,0.30751725]
[1740030365048,1.10363678,651.19,650.37,0.30751725]
[1740030365250,1.10363678,651.18,650.37,0.30751725]
[1740030365455,1.10363678,651.17,650.37,0.30751725]
[1740030365656,1.10363678,651.16,650.37,0.30751725]
[1740030365855,1.10363678,651.15,650.37,0.30751725]
[1740030366056,1.10363678,651.14,650.37,0.30751725]
[1740030366252,1.10363678,651.13,650.37,0.30751725]
[1740030366456,1.10363678,651.12,650.37,0.30751725]
[1740030366657,1.10363678,651.11,650.37,0.30751725]
[1740030366858,0.30694148,651.59,650.37,0.30751725]
[1740030366859,1.10363678,651.1,650.37,0.30751725]
[1740030367160,1.10363678,651.09,650.37,0.30751725]
[1740030367358,1.10363678,651.08,650.37,0.30751725]
[1740030367658,1.10363678,651.07,650.37,0.30751725]
[1740030367859,1.10363678,651.06,650.37,0.30751725]
[1740030368058,1.10363678,651.05,650.37,0.30751725]
[1740030368258,1.10363678,651.04,650.37,0.30751725]
[1740030368559,1.10363678,651.03,650.37,0.30751725]
[1740030368757,1.10363678,651.02,650.37,0.30751725]
[1740030368957,1.10363678,651.01,650.37,0.30751725]
[1740030369154,1.10363678,651.0,650.37,0.30751725]
[1740030369354,1.10363678,650.99,650.37,0.30751725]
[1740030369558,1.10363678,650.98,650.37,0.30751725]
[1740030369758,1.10363678,650.97,650.37,0.30751725]
[1740030369956,1.10363678,650.96,650.37,0.30751725]
[1740030370154,1.10363678,650.95,650.37,0.30751725]
[1740030370355,1.10363678,650.94,650.37,0.30751725]
[1740030370560,1.10363678,650.93,650.37,0.30751725]
[1740030370758,1.10363678,650.92,650.37,0.30751725]
[1740030370958,1.10363678,650.91,650.37,0.30751725]
[1740030371159,1.10363678,650.9,650.37,0.30751725]
[1740030371355,1.10363678,650.89,650.37,0.30751725]
[1740030371559,1.10363678,650.88,650.37,0.30751725]
[1740030371760,1.10363678,650.87,650.37,0.30751725]
[1740030371963,1.10363678,650.86,650.37,0.30751725]
[1740030372261,1.10363678,650.85,650.37,0.30751725]
[1740030372555,1.10363678,650.84,650.37,0.30751725]
[1740030372759,1.10363678,650.83,650.37,0.30751725]
[1740030372957,1.10363678,650.82,650.37,0.30751725]
[1740030373154,1.10363678,650.81,650.37,0.30751725]
[1740030373360,1.10363678,650.8,650.37,0.30751725]
[1740030373558,1.10363678,650.79,650.37,0.30751725]
[1740030373759,1.10147921,650.78,650.37,0.30751725]
[1740030373956,1.10147921,650.77,650.37,0.30751725]
[1740030374266,0.30694148,651.59,650.37,0.30751725]
[1740030374461,1.10121824,651.58,650.37,0.30751725]
[1740030374657,1.40816914,651.57,650.37,0.30751725]
[1740030374862,1.40817385,651.56,650.37,0.30751725]
[1740030375062,1.40817856,651.55,650.37,0.30751725]
[1740030375265,1.40818327,651.54,650.37,0.30751725]
[1740030375563,1.40818798,651.53,650.37,0.30751725]
[1740030375762,1.10121824,651.52,650.37,0.30751725]
[1740030375962,1.10121824,651.51,650.37,0.30751725]
[1740030376163,1.10121824,651.5,650.37,0.30751725]
[1740030376363,1.10121824,651.49,650.37,0.30751725]
[1740030376662,1.40821154,651.48,650.37,0.30751725]
[1740030376862,1.40821625,651.47,650.37,0.30751725]
[1740030377063,1.40822097,651.46,650.37,0.30751725]
[1740030377265,1.40822568,651.45,650.37,0.30751725]
[1740030377464,1.40823039,651.44,650.37,0.30751725]
[1740030377765,1.40823511,651.43,650.37,0.30751725]
[1740030378064,1.40823982,651.42,650.37,0.30751725]
[1740030378265,1.10121824,651.41,650.37,0.30751725]
[1740030378467,1.10121824,651.4,650.37,0.30751725]
[1740030378666,1.10121824,651.39,650.37,0.30751725]
[1740030378867,1.10121824,651.38,650.37,0.30751725]
[1740030379067,1.10121824,651.37,650.37,0.30751725]
[1740030379269,1.10121824,651.36,650.37,0.30751725]
[1740030379466,1.10121824,651.35,650.37,0.30751725]
[1740030379663,1.10121824,651.34,650.37,0.30751725]
[1740030379866,1.10121824,651.33,650.37,0.30751725]
[1740030380167,1.10121824,651.32,650.37,0.30751725]
[1740030380362,1.10121824,651.31,650.37,0.30751725]
[1740030380566,1.10121824,651.3,650.37,0.30751725]
[1740030380764,1.10121824,651.29,650.37,0.30751725]
[1740030380968,1.10121824,651.28,650.37,0.30751725]
[1740030381168,1.10121824,651.27,650.37,0.30751725]
[1740030381467,1.10121824,651.26,650.37,0.30751725]
[1740030381672,1.10121824,651.25,650.37,0.30751725]
[1740030381970,1.10121824,651.24,650.37,0.30751725]
[1740030382171,1.10121824,651.23,650.37,0.30751725]
[1740030382364,1.10121824,651.22,650.37,0.30751725]
[1740030382564,1.10121824,651.21,650.37,0.30751725]
[1740030382871,1.10121824,651.2,650.37,0.30751725]
[1740030383165,1.10121824,651.19,650.37,0.30751725]
[1740030383369,1.10121824,651.18,650.37,0.30751725]
[1740030383570,1.10121824,651.17,650.37,0.30751725]
[1740030383769,1.10121824,651.16,650.37,0.30751725]
[1740030383970,1.10121824,651.15,650.37,0.30751725]
[1740030384170,1.10121824,651.14,650.37,0.30751725]
[1740030384372,1.10121824,651.13,650.37,0.30751725]
[1740030384570,1.10121824,651.12,650.37,0.30751725]
[1740030384770,0.30702158,651.42,650.37,0.30751725]
[1740030384771,1.10121824,651.11,650.37,0.30751725]
[1740030384970,1.10121824,651.1,650.37,0.30751725]
[1740030385169,1.10121824,651.09,650.37,0.30751725]
[1740030385371,1.10121824,651.08,650.37,0.30751725]
[1740030385572,1.10121824,651.07,650.37,0.30751725]
[1740030385768,1.10121824,651.06,650.37,0.30751725]
[1740030385967,1.10121824,651.05,650.37,0.30751725]
[1740030386170,1.10121824,651.04,650.37,0.30751725]
[1740030386473,1.10121824,651.03,650.37,0.30751725]
[1740030386668,1.10121824,651.02,650.37,0.30751725]
[1740030386972,1.10121824,651.01,650.37,0.30751725]
[1740030387174,1.10121824,651.0,650.37,0.30751725]
[1740030387368,1.10121824,650.99,650.37,0.30751725]
[1740030387567,1.10121824,650.98,650.37,0.30751725]
[1740030387767,1.10121824,650.97,650.37,0.30751725]